[Event "98th Caplin Hastings Masters 2024-25"]
[Site "Hastings"]
[Date "2024.12.30"]
[Round "4.10"]
[White "Bozinakis, Pavlos"]
[Black "Golding, Alex"]
[Result "1-0"]
[ECO "E01"]
[WhiteElo "2271"]
[BlackElo "2405"]
[Annotator "ChessBase"]
[PlyCount "141"]
[EventDate "2024.12.23"]
[EventType "swiss"]
[EventCountry "ENG"]
[SourceTitle "playchess.com"]
[Source "ChessBase"]
[SourceQuality "1"]
[TimeControl "5400+30"]

1. c4 {[%emt 0:00:06]} Nf6 {[%emt 0:00:28]} 2. g3 {[%emt 0:00:21]} e6 {[%emt 0:01:19]} 3. Bg2 {[%emt 0:00:17]} d5 {[%emt 0:00:05]} 4. Nf3 {[%emt 0:00:22]} Nbd7 {[%emt 0:00:29]} 5. b3 {[%emt 0:03:14]} Bd6 {[%emt 0:02:27]} 6. O-O {[%emt 0:02:56]} O-O {[%emt 0:00:07]} 7. d4 {[%emt 0:01:32]} c6 {[%emt 0:02:58]} 8. Nc3 {[%emt 0:03:45]} Rb8 {[%emt 0:04:50]} 9. Qc2 {[%emt 0:02:58]} b5 {[%emt 0:01:31]} 10. e4 {[%emt 0:02:30]} dxe4 {[%emt 0:01:14]} 11. Nxe4 {[%emt 0:00:37]} Nxe4 {[%emt 0:00:05]} 12. Qxe4 {[%emt 0:00:13]} Nf6 {[%emt 0:00:09]} 13. Qc2 {[%emt 0:01:39]} bxc4 {[%emt 0:00:10]} 14. bxc4 {[%emt 0:02:17]} c5 {[%emt 0:00:59]} 15. Rd1 {[%emt 0:14:40]} Qe7 {[%emt 0:02:58]} 16. dxc5 {[%emt 0:18:15]} Bxc5 {[%emt 0:00:15]} 17. Nd4 {[%emt 0:00:16]} Bb7 {[%emt 0:06:54]} 18. Nb3 {[%emt 0:00:14]} Bxg2 {[%emt 0:04:02]} 19. Kxg2 {[%emt 0:00:08]} Rfc8 {[%emt 0:02:13]} 20. Qe2 {[%emt 0:04:13]} Qb7+ {[%emt 0:10:05]} 21. f3 {[%emt 0:01:45]} Qa6 {[%emt 0:02:13]} 22. Bf4 {[%emt 0:02:12]} Ra8 {[%emt 0:00:13]} 23. Rd2 {[%emt 0:04:51]} Bb4 {[%emt 0:02:31]} 24. Rc2 {[%emt 0:00:12]} h6 {[%emt 0:00:44]} 25. Rd1 {[%emt 0:00:53]} Rd8 {[%emt 0:04:19]} 26. Be5 {[%emt 0:01:15]} Be7 {[%emt 0:00:48]} 27. Bxf6 {[%emt 0:02:42]} Bxf6 {[%emt 0:00:05]} 28. Rxd8+ {[%emt 0:05:39]} Rxd8 {[%emt 0:01:03]} 29. Qf2 {[%emt 0:00:24]} Rc8 {[%emt 0:09:35]} 30. c5 {[%emt 0:00:22]} Rc6 {[%emt 0:04:15]} 31. Qe3 {[%emt 0:00:46]} Be7 {[%emt 0:01:25]} 32. Qd4 {[%emt 0:00:40]} Qc8 {[%emt 0:00:25]} 33. Qc4 {[%emt 0:01:19]} Qc7 {[%emt 0:02:27]} 34. Qb5 {[%emt 0:00:29]} h5 {[%emt 0:01:55]} 35. Qc4 {[%emt 0:01:41]} Qc8 {[%emt 0:00:59]} 36. Qd4 {[%emt 0:01:34]} h4 {[%emt 0:02:32]} 37. gxh4 {[%emt 0:01:46]} e5 {[%emt 0:01:32]} 38. Qe4 {[%emt 0:02:05]} Rg6+ {[%emt 0:03:07]} 39. Kf2 {[%emt 0:01:24]} Qh3 {[%emt 0:00:44]} 40. Ke2 {[%emt 0:01:59]} Rg2+ {[%emt 0:09:38]} 41. Kd3 {[%emt 0:00:59]} Rxc2 {[%emt 0:00:31]} 42. Kxc2 {[%emt 0:00:05]} Qxh2+ {[%emt 0:00:07]} 43. Kc3 {[%emt 0:01:14]} Qxa2 {[%emt 0:04:23]} 44. Qa8+ {[%emt 0:02:58]} Kh7 {[%emt 0:00:30]} 45. Qb7 {[%emt 0:01:51]} Bf6 {[%emt 0:02:54]} 46. Kb4 {[%emt 0:01:26]} a5+ {[%emt 0:01:30]} 47. Nxa5 {[%emt 0:00:24]} Qd2+ {[%emt 0:00:16]} 48. Ka4 {[%emt 0:01:55]} Qc2+ {[%emt 0:03:01]} 49. Nb3 {[%emt 0:00:40]} Bxh4 {[%emt 0:01:07]} 50. Qxf7 {[%emt 0:00:37]} Qa2+ {[%emt 0:01:36]} 51. Kb5 {[%emt 0:00:14]} Kh6 {[%emt 0:00:49]} 52. c6 {[%emt 0:02:16]} Bd8 {[%emt 0:01:02]} 53. Kb4 {[%emt 0:01:28]} Qf2 {[%emt 0:01:33]} 54. Qe6+ {[%emt 0:00:55]} g6 {[%emt 0:00:45]} 55. Qxe5 {[%emt 0:03:18]} Qxf3 {[%emt 0:00:41]} 56. Qh8+ {[%emt 0:00:10]} Kg5 {[%emt 0:00:13]} 57. Qxd8+ {[%emt 0:00:06]} Kh6 {[%emt 0:00:56]} 58. Qd2+ {[%emt 0:01:03]} Kh7 {[%emt 0:00:06]} 59. Qc3 {[%emt 0:01:29]} Qf8+ {[%emt 0:00:56]} 60. Qc5 {[%emt 0:00:24]} Qb8+ {[%emt 0:00:12]} 61. Kc4 {[%emt 0:00:10]} Qf4+ {[%emt 0:00:16]} 62. Nd4 {[%emt 0:00:35]} Qc1+ {[%emt 0:00:08]} 63. Kb5 {[%emt 0:00:18]} Qb1+ {[%emt 0:00:11]} 64. Ka6 {[%emt 0:00:10]} Qa1+ {[%emt 0:00:21]} 65. Kb7 {[%emt 0:00:08]} Qb1+ {[%emt 0:00:06]} 66. Qb6 {[%emt 0:00:26]} Qe4 {[%emt 0:00:05]} 67. Ka7 {[%emt 0:00:24]} g5 {[%emt 0:02:48]} 68. c7 {[%emt 0:00:14]} Qe7 {[%emt 0:00:26]} 69. Kb8 {[%emt 0:00:13]} Qe5 {[%emt 0:00:07]} 70. Nb5 {[%emt 0:00:57]} g4 {[%emt 0:00:15]} 71. Nd6 {[%emt 0:00:12]} 1-0

[Event "98th Caplin Hastings Masters 2024-25"]
[Site "Hastings"]
[Date "2024.12.30"]
[Round "4.11"]
[White "Golding, James"]
[Black "Grutter, Tim"]
[Result "0-1"]
[ECO "A65"]
[WhiteElo "2203"]
[BlackElo "2379"]
[Annotator "RC"]
[PlyCount "102"]
[EventDate "2024.12.23"]
[EventType "swiss"]
[EventCountry "ENG"]
[SourceTitle "playchess.com"]
[Source "ChessBase"]
[SourceQuality "1"]
[TimeControl "5400+30"]

1. d4 {[%emt 0:00:03]} Nf6 {[%emt 0:00:11]} 2. c4 {[%emt 0:00:05]} g6 {[%emt 0:00:10]} 3. Nc3 {[%emt 0:00:05]} Bg7 {[%emt 0:00:04]} 4. e4 {[%emt 0:00:05]} d6 {[%emt 0:00:04]} 5. f3 {[%emt 0:00:06]} O-O {[%emt 0:00:35]} 6. Be3 {[%emt 0:00:04]} c5 {[%emt 0:00:05]} 7. d5 {[%emt 0:00:04]} e6 {[%emt 0:00:32]} 8. Qd2 {[%emt 0:00:05]} exd5 {[%emt 0:00:06]} 9. cxd5 {[%emt 0:00:04]} a6 {[%emt 0:00:10]} 10. a4 {[%emt 0:00:05]} Re8 {[%emt 0:00:07]} 11. Be2 {[%emt 0:00:03]} Qc7 {[%emt 0:00:20]} 12. Bh6 {[%emt 0:11:01]} Bxh6 {[%emt 0:07:28]} 13. Qxh6 {[%emt 0:00:07]} Nbd7 {[%emt 0:00:16]} 14. Nh3 {[%emt 0:03:31]} c4 {[%emt 0:02:32]} 15. Nf2 {[%emt 0:25:14]} Nc5 {[%emt 0:04:01]} 16. O-O {[%emt 0:00:51]} Nb3 {[%emt 0:09:01]} 17. Rad1 {[%emt 0:00:16]} Rb8 {[%emt 0:12:49]} 18. e5 {[%emt 0:07:59]} Rxe5 {[%emt 0:04:43]} 19. Nce4 {[%emt 0:00:28]} Ne8 {[%emt 0:08:13]} 20. f4 {[%emt 0:08:08]} Re7 {[%emt 0:01:24]} 21. Ng5 {[%emt 0:06:12]} f6 {[%emt 0:04:12]} 22. Ne6 {[%emt 0:00:06]} Bxe6 {[%emt 0:00:41]} 23. dxe6 {[%emt 0:00:07]} f5 {[%emt 0:02:05]} 24. g4 {[%emt 0:06:51]} Ng7 {[%emt 0:04:05]} 25. Bf3 {[%emt 0:05:16]} b5 {[%emt 0:02:30]} 26. Kh1 {[%emt 0:09:35]} bxa4 {[%emt 0:07:02]} 27. gxf5 {[%emt 0:05:18]} Nxf5 {[%emt 0:01:02]} 28. Qg5 {[%emt 0:00:06]} Rf8 {[%emt 0:05:43]} 29. Ng4 {[%emt 0:01:07]} Kg7 {[%emt 0:00:35]} 30. Rg1 {[%emt 0:01:11]} Rxe6 {[%emt 0:00:58]} 31. Bd5 {[%emt 0:00:56]} Re2 {[%emt 0:01:56]} 32. Rge1 {[%emt 0:03:12]} Nbd4 {[%emt 0:08:24]} 33. Rxe2 {[%emt 0:06:36]} Nxe2 {[%emt 0:00:06]} 34. Bf3 {[%emt 0:01:15]} h6 {[%emt 0:03:52]} 35. Nxh6 {[%emt 0:00:14]} Nxh6 {[%emt 0:00:09]} 36. Bxe2 {[%emt 0:00:19]} Nf5 {[%emt 0:00:26]} 37. Bf3 {[%emt 0:00:39]} c3 {[%emt 0:01:23]} 38. Rg1 {[%emt 0:01:07]} Rf6 {[%emt 0:00:15]} 39. bxc3 {[%emt 0:00:58]} Qxc3 {[%emt 0:00:12]} 40. Be4 {[%emt 0:00:22]} a3 {[%emt 0:03:50]} 41. Bxf5 {[%emt 0:00:37]} Qf3+ {[%emt 0:00:16]} 42. Qg2 {[%emt 0:00:28]} Qxg2+ {[%emt 0:00:08]} 43. Kxg2 {[%emt 0:00:11]} Rxf5 {[%emt 0:00:04]} 44. Ra1 {[%emt 0:00:23]} Ra5 {[%emt 0:00:08]} 45. Ra2 {[%emt 0:00:13]} Kf6 {[%emt 0:00:07]} 46. Kf3 {[%emt 0:00:10]} Kf5 {[%emt 0:00:09]} 47. Rg2 {[%emt 0:00:05]} Ra4 {[%emt 0:00:25]} 48. Rg5+ {[%emt 0:00:06]} Kf6 {[%emt 0:00:04]} 49. Rg1 {[%emt 0:00:05]} a2 {[%emt 0:00:02]} 50. Ra1 {[%emt 0:00:06]} Kf5 {[%emt 0:00:02]} 51. Kg3 {[%emt 0:00:15]} Ra3+ {[%emt 0:00:21]} 0-1

[Event "98th Caplin Hastings Masters 2024-25"]
[Site "Hastings"]
[Date "2024.12.30"]
[Round "4.12"]
[White "Balaji, Aaravamudhan"]
[Black "Wall, Tim P"]
[Result "1-0"]
[ECO "A58"]
[WhiteElo "2364"]
[BlackElo "2173"]
[Annotator "RC"]
[PlyCount "55"]
[EventDate "2024.12.23"]
[EventType "swiss"]
[EventCountry "ENG"]
[SourceTitle "playchess.com"]
[Source "ChessBase"]
[SourceQuality "1"]
[TimeControl "5400+30"]

1. d4 {[%emt 0:00:28]} Nf6 {[%emt 0:00:35]} 2. c4 {[%emt 0:00:12]} c5 {[%emt 0:00:29]} 3. d5 {[%emt 0:00:20]} b5 {[%emt 0:00:21]} 4. cxb5 {[%emt 0:00:08]} a6 {[%emt 0:00:09]} 5. bxa6 {[%emt 0:00:07]} e6 {[%emt 0:00:14]} 6. dxe6 {[%emt 0:08:16]} fxe6 {[%emt 0:00:16]} 7. g3 {[%emt 0:00:10]} d5 {[%emt 0:18:44]} 8. Bg2 {[%emt 0:00:29]} Nc6 {[%emt 0:05:56]} 9. Nh3 {[%emt 0:12:33]} Be7 {[%emt 0:06:42]} 10. O-O {[%emt 0:03:33]} O-O {[%emt 0:01:31]} 11. Nc3 {[%emt 0:09:55]} Bxa6 {[%emt 0:03:14]} 12. Re1 {[%emt 0:00:39]} Qb6 {[%emt 0:12:53]} 13. Nf4 {[%emt 0:20:13]} Ne5 {[%emt 0:04:19]} 14. b3 {[%emt 0:01:38]} Rad8 {[%emt 0:01:34]} 15. Na4 {[%emt 0:02:46]} Qc6 {[%emt 0:03:07]} 16. Bb2 {[%emt 0:09:43]} Neg4 {[%emt 0:04:15]} 17. h3 {[%emt 0:16:14]} Nh6 {[%emt 0:10:18]} 18. Qc2 {[%emt 0:07:10]} Ne4 {[%emt 0:03:47]} 19. Nc3 {[%emt 0:01:34]} Nxf2 {[%emt 0:03:23]} 20. e3 {[%emt 0:03:14]} Rxf4 {[%emt 0:04:36]} 21. exf4 {[%emt 0:00:22]} Nd3 {[%emt 0:00:08]} 22. Red1 {[%emt 0:01:05]} Nxb2 {[%emt 0:02:00]} 23. Qxb2 {[%emt 0:00:02]} Bf6 {[%emt 0:00:08]} 24. Rac1 {[%emt 0:00:22]} Nf5 {[%emt 0:00:33]} 25. Kh2 {[%emt 0:00:46]} Nd4 {[%emt 0:03:51]} 26. Qf2 {[%emt 0:00:47]} Qd6 {[%emt 0:02:27]} 27. Na4 {[%emt 0:00:20]} Rc8 {[%emt 0:02:37]} 28. b4 {[%emt 0:00:24]} 1-0

[Event "98th Caplin Hastings Masters 2024-25"]
[Site "Hastings"]
[Date "2024.12.30"]
[Round "4.13"]
[White "Rida, Ruqayyah"]
[Black "Waldhausen Gordon, Frederick"]
[Result "0-1"]
[ECO "C55"]
[WhiteElo "2019"]
[BlackElo "2355"]
[Annotator "RC"]
[PlyCount "92"]
[EventDate "2024.12.23"]
[EventType "swiss"]
[EventCountry "ENG"]
[SourceTitle "playchess.com"]
[Source "ChessBase"]
[SourceQuality "1"]
[TimeControl "5400+30"]

1. e4 {[%emt 0:00:02]} e5 {[%emt 0:00:04]} 2. Nf3 {[%emt 0:00:05]} Nc6 {[%emt 0:00:02]} 3. Bc4 {[%emt 0:00:15]} Nf6 {[%emt 0:00:04]} 4. d3 {[%emt 0:00:13]} h6 {[%emt 0:00:04]} 5. c3 {[%emt 0:00:31]} d6 {[%emt 0:00:08]} 6. Bb3 {[%emt 0:00:53]} g6 {[%emt 0:00:16]} 7. Nbd2 {[%emt 0:00:33]} Bg7 {[%emt 0:00:05]} 8. a4 {[%emt 0:02:53]} O-O {[%emt 0:01:07]} 9. O-O {[%emt 0:01:29]} Nh5 {[%emt 0:04:45]} 10. Nc4 {[%emt 0:09:22]} Be6 {[%emt 0:04:28]} 11. Re1 {[%emt 0:05:39]} Kh7 {[%emt 0:06:26]} 12. Bc2 {[%emt 0:12:30]} d5 {[%emt 0:06:26]} 13. exd5 {[%emt 0:03:16]} Qxd5 {[%emt 0:00:06]} 14. Ncd2 {[%emt 0:09:48]} Rae8 {[%emt 0:10:04]} 15. Nf1 {[%emt 0:04:47]} f5 {[%emt 0:03:43]} 16. Nh4 {[%emt 0:06:47]} Nf6 {[%emt 0:14:11]} 17. Ng3 {[%emt 0:06:09]} Ne7 {[%emt 0:05:00]} 18. Bd2 {[%emt 0:04:48]} Kh8 {[%emt 0:11:11]} 19. c4 {[%emt 0:03:44]} Qd6 {[%emt 0:00:58]} 20. Bc3 {[%emt 0:01:22]} Nd7 {[%emt 0:02:19]} 21. Qd2 {[%emt 0:02:11]} c5 {[%emt 0:03:08]} 22. Re2 {[%emt 0:05:30]} g5 {[%emt 0:03:10]} 23. Nf3 {[%emt 0:00:57]} Ng6 {[%emt 0:01:15]} 24. Nh5 {[%emt 0:06:23]} g4 {[%emt 0:05:26]} 25. Nxe5 {[%emt 0:03:05]} Ndxe5 {[%emt 0:00:56]} 26. Nxg7 {[%emt 0:00:38]} Kxg7 {[%emt 0:00:25]} 27. Rae1 {[%emt 0:01:32]} Bd7 {[%emt 0:02:37]} 28. d4 {[%emt 0:02:44]} cxd4 {[%emt 0:01:04]} 29. c5 {[%emt 0:03:10]} Qd5 {[%emt 0:15:32]} 30. Qxd4 {[%emt 0:02:07]} Qxd4 {[%emt 0:00:00]} 31. Bxd4 {[%emt 0:00:07]} Kf6 {[%emt 0:00:00]} 32. f4 {[%emt 0:00:10]} gxf3 {[%emt 0:00:00]} 33. gxf3 {[%emt 0:00:05]} Rg8 {[%emt 0:00:00]} 34. Kf1 {[%emt 0:02:13]} Bc6 {[%emt 0:00:00]} 35. f4 {[%emt 0:00:32]} Nxf4 {[%emt 0:00:00]} 36. Bxe5+ {[%emt 0:00:48]} Rxe5 {[%emt 0:00:00]} 37. Rxe5 {[%emt 0:00:27]} Bg2+ {[%emt 0:00:00]} 38. Kf2 {[%emt 0:00:21]} Nh3+ {[%emt 0:00:00]} 39. Ke3 {[%emt 0:00:24]} Kxe5 {[%emt 0:00:00]} 40. Bb3 {[%emt 0:00:11]} Rd8 {[%emt 0:00:00]} 41. Bc4 {[%emt 0:01:19]} f4+ {[%emt 0:00:00]} 42. Ke2 {[%emt 0:00:07]} Ke4 {[%emt 0:00:00]} 43. Rc1 {[%emt 0:00:22]} f3+ {[%emt 0:00:00]} 44. Ke1 {[%emt 0:00:04]} f2+ {[%emt 0:00:00]} 45. Ke2 {[%emt 0:00:05]} f1=Q+ {[%emt 0:00:00]} 46. Rxf1 {[%emt 0:00:10]} Bxf1+ {[%emt 0:00:00]} 0-1

[Event "98th Caplin Hastings Masters 2024-25"]
[Site "Hastings"]
[Date "2024.12.30"]
[Round "4.14"]
[White "Boswell, Jacob Connor"]
[Black "Adams, Henry"]
[Result "1/2-1/2"]
[ECO "C54"]
[WhiteElo "2277"]
[BlackElo "1991"]
[Annotator "RC"]
[PlyCount "67"]
[EventDate "2024.12.23"]
[EventType "swiss"]
[EventCountry "ENG"]
[SourceTitle "playchess.com"]
[Source "ChessBase"]
[SourceQuality "1"]
[TimeControl "5400+30"]

1. e4 {[%emt 0:09:04]} e5 {[%emt 0:00:12]} 2. Nf3 {[%emt 0:00:07]} Nc6 {[%emt 0:00:03]} 3. Bc4 {[%emt 0:00:07]} Bc5 {[%emt 0:00:35]} 4. c3 {[%emt 0:00:18]} Nf6 {[%emt 0:00:07]} 5. d4 {[%emt 0:00:30]} exd4 {[%emt 0:00:08]} 6. e5 {[%emt 0:00:32]} d5 {[%emt 0:00:18]} 7. Bb5 {[%emt 0:00:15]} Ne4 {[%emt 0:00:34]} 8. cxd4 {[%emt 0:00:11]} Bb6 {[%emt 0:00:56]} 9. Nc3 {[%emt 0:01:25]} O-O {[%emt 0:01:08]} 10. Be3 {[%emt 0:02:34]} Ne7 {[%emt 0:13:08]} 11. Bd3 {[%emt 0:04:48]} Nxc3 {[%emt 0:04:05]} 12. bxc3 {[%emt 0:00:18]} Bf5 {[%emt 0:01:18]} 13. O-O {[%emt 0:07:04]} Qd7 {[%emt 0:04:12]} 14. Be2 {[%emt 0:05:05]} Rac8 {[%emt 0:12:37]} 15. Nh4 {[%emt 0:19:44]} Be6 {[%emt 0:12:51]} 16. Bd3 {[%emt 0:07:01]} c5 {[%emt 0:09:38]} 17. Qb1 {[%emt 0:22:38]} g6 {[%emt 0:03:29]} 18. Rc1 {[%emt 0:04:24]} cxd4 {[%emt 0:02:37]} 19. cxd4 {[%emt 0:00:29]} Rxc1+ {[%emt 0:06:29]} 20. Qxc1 {[%emt 0:00:02]} Qa4 {[%emt 0:01:28]} 21. Bc2 {[%emt 0:09:18]} Qc4 {[%emt 0:05:18]} 22. Qb2 {[%emt 0:00:14]} Rc8 {[%emt 0:01:29]} 23. Rc1 {[%emt 0:01:45]} Qc3 {[%emt 0:01:11]} 24. Qb1 {[%emt 0:00:49]} Qa3 {[%emt 0:01:43]} 25. h3 {[%emt 0:00:29]} Rc3 {[%emt 0:04:19]} 26. Kh2 {[%emt 0:03:26]} Nc6 {[%emt 0:05:19]} 27. Nf3 {[%emt 0:00:12]} Qb4 {[%emt 0:02:48]} 28. Qxb4 {[%emt 0:00:54]} Nxb4 {[%emt 0:00:01]} 29. Bb3 {[%emt 0:00:10]} Rxc1 {[%emt 0:02:08]} 30. Bxc1 {[%emt 0:00:01]} Nc6 {[%emt 0:00:45]} 31. Bb2 {[%emt 0:00:29]} Ba5 {[%emt 0:00:43]} 32. Kg3 {[%emt 0:00:19]} b5 {[%emt 0:00:51]} 33. Kf4 {[%emt 0:01:22]} Bb4 {[%emt 0:01:16]} 34. Ke3 {[%emt 0:00:42]} 1/2-1/2

[Event "98th Caplin Hastings Masters 2024-25"]
[Site "Hastings"]
[Date "2024.12.30"]
[Round "4.15"]
[White "Struck, Lasse"]
[Black "Badacsonyi, Stanley"]
[Result "1-0"]
[ECO "E60"]
[WhiteElo "1983"]
[BlackElo "2266"]
[Annotator "RC"]
[PlyCount "69"]
[EventDate "2024.12.23"]
[EventType "swiss"]
[EventCountry "ENG"]
[SourceTitle "playchess.com"]
[Source "ChessBase"]
[SourceQuality "1"]
[TimeControl "5400+30"]

1. c4 {[%emt 0:00:03]} Nf6 {[%emt 0:00:06]} 2. g3 {[%emt 0:00:07]} g6 {[%emt 0:00:06]} 3. Bg2 {[%emt 0:00:08]} Bg7 {[%emt 0:00:05]} 4. Nf3 {[%emt 0:00:11]} O-O {[%emt 0:00:06]} 5. O-O {[%emt 0:00:09]} d6 {[%emt 0:00:03]} 6. d4 {[%emt 0:00:10]} c5 {[%emt 0:00:07]} 7. dxc5 {[%emt 0:00:46]} dxc5 {[%emt 0:00:06]} 8. Ne5 {[%emt 0:00:19]} Qd4 {[%emt 0:00:08]} 9. Qxd4 {[%emt 0:00:20]} cxd4 {[%emt 0:00:07]} 10. e3 {[%emt 0:00:12]} dxe3 {[%emt 0:05:34]} 11. Bxe3 {[%emt 0:00:11]} Ne8 {[%emt 0:00:21]} 12. Bd4 {[%emt 0:02:18]} Nd6 {[%emt 0:00:25]} 13. Na3 {[%emt 0:00:22]} f6 {[%emt 0:03:02]} 14. Nd3 {[%emt 0:07:58]} Rd8 {[%emt 0:01:53]} 15. Bc3 {[%emt 0:00:50]} Nc6 {[%emt 0:01:57]} 16. Nc5 {[%emt 0:09:35]} e5 {[%emt 0:09:58]} 17. Rfd1 {[%emt 0:08:03]} Bf8 {[%emt 0:03:23]} 18. b4 {[%emt 0:12:46]} a5 {[%emt 0:07:04]} 19. b5 {[%emt 0:01:39]} Nd4 {[%emt 0:01:17]} 20. Bb2 {[%emt 0:07:37]} Nxc4 {[%emt 0:03:36]} 21. Bxd4 {[%emt 0:13:57]} Nxa3 {[%emt 0:05:47]} 22. Be3 {[%emt 0:01:04]} Rxd1+ {[%emt 0:11:32]} 23. Rxd1 {[%emt 0:00:07]} Nxb5 {[%emt 0:09:41]} 24. Rd8 {[%emt 0:06:27]} Nc7 {[%emt 0:00:55]} 25. Bh6 {[%emt 0:02:27]} Bf5 {[%emt 0:00:08]} 26. Rxa8 {[%emt 0:00:15]} Nxa8 {[%emt 0:00:01]} 27. Bd5+ {[%emt 0:00:18]} Kh8 {[%emt 0:00:16]} 28. Bxf8 {[%emt 0:00:11]} Nc7 {[%emt 0:00:31]} 29. Bxb7 {[%emt 0:02:23]} Nb5 {[%emt 0:00:09]} 30. Be4 {[%emt 0:02:07]} Bc8 {[%emt 0:00:23]} 31. Bd5 {[%emt 0:01:01]} Nc3 {[%emt 0:00:30]} 32. Bc4 {[%emt 0:00:08]} Bf5 {[%emt 0:00:13]} 33. Be7 {[%emt 0:00:58]} Kg7 {[%emt 0:00:06]} 34. Bd8 {[%emt 0:00:07]} Bb1 {[%emt 0:00:18]} 35. a3 {[%emt 0:02:04]} 1-0

[Event "98th Caplin Hastings Masters 2024-25"]
[Site "Hastings"]
[Date "2024.12.30"]
[Round "4.16"]
[White "Badacsonyi, Frankie"]
[Black "Zhang, Kendrick Botong"]
[Result "1/2-1/2"]
[ECO "D97"]
[WhiteElo "2218"]
[BlackElo "1979"]
[Annotator "RC"]
[PlyCount "96"]
[EventDate "2024.12.23"]
[EventType "swiss"]
[EventCountry "ENG"]
[SourceTitle "playchess.com"]
[Source "ChessBase"]
[SourceQuality "1"]
[TimeControl "5400+30"]

1. d4 {[%emt 0:00:03]} Nf6 {[%emt 0:00:07]} 2. c4 {[%emt 0:00:25]} g6 {[%emt 0:00:10]} 3. Nc3 {[%emt 0:00:11]} d5 {[%emt 0:00:09]} 4. Nf3 {[%emt 0:00:55]} Bg7 {[%emt 0:00:33]} 5. Qb3 {[%emt 0:01:50]} dxc4 {[%emt 0:00:37]} 6. Qxc4 {[%emt 0:00:08]} O-O {[%emt 0:00:16]} 7. e4 {[%emt 0:00:14]} a6 {[%emt 0:00:12]} 8. Be2 {[%emt 0:00:39]} b5 {[%emt 0:12:26]} 9. Qb3 {[%emt 0:00:08]} Bb7 {[%emt 0:15:45]} 10. e5 {[%emt 1:30:57]} Ne4 {[%emt 0:08:18]} 11. O-O {[%emt 0:00:00]} Nxc3 {[%emt 0:04:38]} 12. Qxc3 {[%emt 0:00:00]} Nd7 {[%emt 0:03:44]} 13. e6 {[%emt 0:00:00]} fxe6 {[%emt 0:13:12]} 14. Ng5 {[%emt 0:00:00]} Rf6 {[%emt 0:04:46]} 15. Qh3 {[%emt 0:00:00]} Nf8 {[%emt 0:01:58]} 16. Be3 {[%emt 0:00:00]} Bd5 {[%emt 0:07:25]} 17. Qh4 {[%emt 0:00:00]} h6 {[%emt 0:03:44]} 18. Ne4 {[%emt 0:00:00]} Rf7 {[%emt 0:02:45]} 19. Nc5 {[%emt 0:00:00]} g5 {[%emt 0:01:37]} 20. Qg4 {[%emt 0:00:00]} Ng6 {[%emt 0:06:54]} 21. Nxe6 {[%emt 0:00:00]} Qd6 {[%emt 0:04:22]} 22. Nxg7 {[%emt 0:00:00]} Kxg7 {[%emt 0:01:20]} 23. Rfc1 {[%emt 0:00:00]} Nf4 {[%emt 0:00:31]} 24. Bf1 {[%emt 0:00:00]} Be6 {[%emt 0:01:48]} 25. Qd1 {[%emt 0:00:00]} Nd5 {[%emt 0:00:22]} 26. Qc2 {[%emt 0:00:00]} Raf8 {[%emt 0:00:51]} 27. Qc6 {[%emt 0:00:00]} Nxe3 {[%emt 0:00:16]} 28. Qxd6 {[%emt 0:00:00]} cxd6 {[%emt 0:00:28]} 29. fxe3 {[%emt 0:00:00]} Bd5 {[%emt 0:01:35]} 30. Re1 {[%emt 0:00:00]} Rf2 {[%emt 0:01:48]} 31. Re2 {[%emt 0:00:00]} Rxf1+ {[%emt 0:02:10]} 32. Rxf1 {[%emt 0:00:00]} Rxf1+ {[%emt 0:00:07]} 33. Kxf1 {[%emt 0:00:00]} Bc4 {[%emt 0:00:07]} 34. Ke1 {[%emt 0:00:00]} Bxe2 {[%emt 0:00:06]} 35. Kxe2 {[%emt 0:00:00]} d5 {[%emt 0:00:38]} 36. a4 {[%emt 0:00:00]} bxa4 {[%emt 0:00:36]} 37. g4 {[%emt 0:00:00]} Kf6 {[%emt 0:00:44]} 38. Kd3 {[%emt 0:00:00]} Ke6 {[%emt 0:01:12]} 39. Kc3 {[%emt 0:00:00]} a5 {[%emt 0:00:40]} 40. b4 {[%emt 0:00:00]} Kd6 {[%emt 0:00:36]} 41. bxa5 {[%emt 0:00:00]} Kc6 {[%emt 0:00:28]} 42. Kb4 {[%emt 0:00:00]} a3 {[%emt 0:00:05]} 43. Kxa3 {[%emt 0:00:00]} Kb5 {[%emt 0:00:03]} 44. a6 {[%emt 0:00:00]} Kxa6 {[%emt 0:00:04]} 45. Ka4 {[%emt 0:00:00]} Kb6 {[%emt 0:00:07]} 46. Kb4 {[%emt 0:00:00]} e6 {[%emt 0:00:11]} 47. h3 {[%emt 0:00:00]} Kc6 {[%emt 0:00:09]} 48. Ka5 {[%emt 0:00:00]} Kc7 {[%emt 0:00:07]} 1/2-1/2

[Event "98th Caplin Hastings Masters 2024-25"]
[Site "Hastings"]
[Date "2024.12.30"]
[Round "4.17"]
[White "Samarasinghe Jude, Ranga"]
[Black "Brewer, Callum D"]
[Result "1/2-1/2"]
[ECO "B14"]
[WhiteElo "1944"]
[BlackElo "2151"]
[Annotator "RC"]
[PlyCount "56"]
[EventDate "2024.12.23"]
[EventType "swiss"]
[EventCountry "ENG"]
[SourceTitle "playchess.com"]
[Source "ChessBase"]
[SourceQuality "1"]
[TimeControl "5400+30"]

1. e4 {[%emt 0:02:16]} c6 {[%emt 0:00:02]} 2. d4 {[%emt 0:00:06]} d5 {[%emt 0:00:06]} 3. exd5 {[%emt 0:00:05]} cxd5 {[%emt 0:00:05]} 4. c4 {[%emt 0:00:03]} Nf6 {[%emt 0:00:12]} 5. Nc3 {[%emt 0:00:05]} e6 {[%emt 0:06:08]} 6. Bf4 {[%emt 0:04:02]} Bb4 {[%emt 0:11:02]} 7. Bxb8 {[%emt 0:08:19]} Bxc3+ {[%emt 0:02:24]} 8. bxc3 {[%emt 0:00:05]} Rxb8 {[%emt 0:00:01]} 9. Qa4+ {[%emt 0:00:28]} Bd7 {[%emt 0:04:15]} 10. Qxa7 {[%emt 0:04:12]} dxc4 {[%emt 0:06:19]} 11. Qa3 {[%emt 0:03:38]} Qe7 {[%emt 0:05:50]} 12. Qxe7+ {[%emt 0:11:43]} Kxe7 {[%emt 0:00:01]} 13. Nf3 {[%emt 0:03:56]} b5 {[%emt 0:09:41]} 14. Ne5 {[%emt 0:01:04]} Ra8 {[%emt 0:01:44]} 15. a4 {[%emt 0:03:43]} Ra5 {[%emt 0:12:31]} 16. Be2 {[%emt 0:02:12]} Rha8 {[%emt 0:02:01]} 17. Bd1 {[%emt 0:00:25]} Nd5 {[%emt 0:06:12]} 18. Rc1 {[%emt 0:02:01]} f6 {[%emt 0:05:35]} 19. Nxd7 {[%emt 0:03:06]} Kxd7 {[%emt 0:00:08]} 20. axb5 {[%emt 0:00:07]} Ra1 {[%emt 0:02:06]} 21. Rxa1 {[%emt 0:03:31]} Rxa1 {[%emt 0:00:01]} 22. Kd2 {[%emt 0:46:23]} Ra3 {[%emt 0:15:06]} 23. Re1 {[%emt 0:00:00]} Nxc3 {[%emt 0:01:57]} 24. Re3 {[%emt 0:00:00]} Nb1+ {[%emt 0:03:29]} 25. Kc2 {[%emt 0:00:00]} Rxe3 {[%emt 0:00:11]} 26. fxe3 {[%emt 0:00:00]} Na3+ {[%emt 0:00:07]} 27. Kc3 {[%emt 0:00:00]} Nxb5+ {[%emt 0:00:04]} 28. Kxc4 {[%emt 0:00:00]} Nd6+ {[%emt 0:03:02]} 1/2-1/2